[Event "Teplice Open 2022"]
[Site "Teplice"]
[Date "2022.06.21"]
[Round "4.16"]
[White "Wagh Suyog"]
[Black "Kozak, Adam"]
[Result "1-0"]
[ECO "A64"]
[WhiteElo "2352"]
[BlackElo "2532"]
[Annotator "TA"]
[PlyCount "82"]
[EventDate "2022.06.18"]
[EventType "swiss"]
[EventCountry "CZE"]
[SourceTitle "playchess.com"]
[Source "ChessBase"]
[SourceQuality "1"]
[TimeControl "40/5400+30:1800+30"]

{[%evp 27,82,0,11,0,37,29,49,0,34,40,52,40,41,40,97,91,92,90,92,94,130,133,143,125,131,126,118,122,178,193,193,202,175,181,200,195,205,166,158,112,120,109,178,168,375,371,583,601,667,660,627,612,751,739,1279,1209,488]} 1. d4 {[%emt 0:00:03]} Nf6 {[%emt 0:01:17]} 2. c4 {[%emt 0:01:00]} e6 {[%emt 0:00:08]} 3. g3 {[%emt 0:00:30]} c5 {[%emt 0:00:57]} 4. d5 {[%emt 0:01:39]} exd5 {[%emt 0:00:09]} 5. cxd5 {[%emt 0:00:21]} d6 {[%emt 0:00:09]} 6. Nc3 {[%emt 0:00:37]} g6 {[%emt 0:00:38]} 7. Bg2 {[%emt 0:00:53]} Bg7 {[%emt 0:00:00]} 8. Nf3 {[%emt 0:00:58]} O-O {[%emt 0:00:00]} 9. O-O {[%emt 0:00:04]} Re8 {[%emt 0:00:00]} 10. Nd2 {[%emt 0:02:23]} a6 {[%emt 0:00:45]} 11. a4 {[%emt 0:01:01]} Nbd7 {[%emt 0:00:33]} 12. h3 {[%emt 0:12:00]} Nh5 {[%emt 0:01:49]} 13. Nce4 {[%emt 0:12:03]} Ndf6 {[%emt 0:04:53]} 14. Nc3 {[%emt 0:00:16]} Nd7 $1 {[%emt 0:01:00]} 15. Nce4 {[%emt 0:01:53] A64: Modern Benoni: Fianchetto Variation: 9...Nbd7 10 Nd2 a6 11 a4 Re8.} Ndf6 {[%emt 0:39:10]} 16. Nxf6+ {[%emt 0:00:32]} Nxf6 {[%emt 0:02:59]} 17. Nc4 $1 {[%emt 0:06:09] [#] White is slightly better.} Qc7 $146 {[%emt 0:00:27]} (17... Bf5 $5 {[%cal Rf5e4]}) ({Predecessor:} 17... Rb8 18. a5 Bf8 19. Bf4 Nh5 20. Bd2 Bd7 21. g4 Nf6 22. Re1 Bb5 23. b3 Nd7 24. Bc3 Bxc4 25. bxc4 Bg7 26. Bxg7 Kxg7 {½-½ (83) Lazavik,D (2424)-Shimanov,A (2593) Chess.com INT 2020}) 18. Bf4 {[%emt 0:02:43][%cal Bc1f4,Bf4d2,Bd2b4][%mdl 32]} Bf8 {[%emt 0:00:58]} 19. a5 {[%emt 0:10:06]} Bd7 {[%emt 0:01:39]} 20. b4 $36 {[%emt 0:08:02][%mdl 2048] Strongly threatening bxc5. White is pushing.} Nh5 {[%emt 0:09:36]} (20... Bb5 $14 21. Rc1 (21. Nb6 Rab8 $11) 21... Nd7) 21. Bd2 $16 {[%emt 0:02:13]} Bb5 {[%emt 0:01:30]} 22. Rc1 {[%emt 0:01:38]} cxb4 {[%emt 0:01:39]} 23. Nb6 {[%emt 0:03:36]} Qe7 {[%emt 0:00:07]} 24. Re1 {[%emt 0:07:16]} (24. Nxa8 Bxe2 25. Re1 Bxd1 $14) 24... Rad8 {[%emt 0:00:30]} 25. e4 {[%emt 0:01:51]} ({Don't do} 25. Bxb4 f5 $16) 25... Bg7 {[%emt 0:06:44]} 26. Bxb4 {[%emt 0:00:33][%cal Oe4e5]} Qf6 {[%emt 0:01:32]} 27. Rc7 {[%emt 0:04:33]} Qb2 {[%emt 0:18:56]} (27... Qd4 $16 28. Bc3 Qxd1 29. Rxd1 Bxc3 30. Rxc3 Nf6) 28. Qd2 $18 {[%emt 0:01:38]} Qxd2 {[%emt 0:03:29]} 29. Bxd2 {[%emt 0:00:19]} Bd4 {[%emt 0:00:03]} 30. Be3 {[%emt 0:03:51]} ({Stronger than} 30. Rxb7 Nxg3 31. Bf3 f5 $15) 30... Bxe3 {[%emt 0:00:09]} 31. Rxe3 {[%emt 0:00:06]} f5 {[%emt 0:00:01]} 32. Rxb7 {[%emt 0:03:05]} fxe4 {[%emt 0:00:21]} 33. Bxe4 {[%emt 0:07:57]} ({Much less strong is} 33. Rxe4 Rxe4 34. Bxe4 Nf6 $16) ({Better is} 33. Ra7) 33... Nf6 $16 {[%emt 0:02:39]} 34. Bf3 {[%emt 0:01:24] White is more active.} h5 {[%emt 0:02:11]} (34... Rxe3 $16 35. fxe3 Rf8) 35. Re6 $18 {[%emt 0:03:05]} Rxe6 {[%emt 0:00:29]} (35... Rf8 36. Be2 Bxe2) 36. dxe6 {[%emt 0:00:01] Threatens to win with Nd5.} Re8 {[%emt 0:00:32]} (36... d5 {was called for.} 37. e7 Rd6 38. Nxd5 Nxd5) 37. Nd5 {[%emt 0:00:26] White is clearly winning.} Rxe6 {[%emt 0:00:12] [#]} 38. Nxf6+ $1 {[%emt 0:01:17]} Rxf6 {[%emt 0:00:01]} 39. Bd5+ {[%emt 0:00:03]} Kh8 {[%emt 0:00:01] [#]} 40. Rxb5 $1 {[%emt 0:01:20][%mdl 512]} axb5 {[%emt 0:01:11]} (40... Rf5 41. Rb8+) 41. a6 {[%emt 0:30:00]} Rf8 {[%emt 0:30:28] Weighted Error Value: White=0.05 (flawless) /Black=0.31} 1-0

[Event "Teplice Open 2022"]
[Site "Teplice"]
[Date "2022.06.21"]
[Round "4.18"]
[White "Santiago, Yago De Moura"]
[Black "Gov, Guy"]
[Result "1-0"]
[ECO "A46"]
[WhiteElo "2498"]
[BlackElo "2149"]
[Annotator "TA"]
[PlyCount "75"]
[EventDate "2022.06.18"]
[EventType "swiss"]
[EventCountry "CZE"]
[SourceTitle "playchess.com"]
[Source "ChessBase"]
[SourceQuality "1"]
[TimeControl "40/5400+30:1800+30"]

{[%evp 11,75,22,27,23,32,31,39,26,41,34,30,34,158,139,175,195,206,204,212,191,213,209,234,227,225,220,226,193,204,215,320,320,302,239,326,298,309,302,357,261,394,420,416,408,418,388,426,354,529,535,687,685,1418,1441,1566,1483,2226,1447,29973,29974,6411,6287,29988,29989,29996,29997]} 1. d4 {[%emt 0:00:08]} Nf6 {[%emt 0:00:06]} 2. Nf3 {[%emt 0:00:06]} e6 {[%emt 0:00:06]} 3. Bg5 {[%emt 0:00:13]} Be7 {[%emt 0:00:39]} 4. Nbd2 {[%emt 0:00:36]} b6 {[%emt 0:00:07]} 5. e4 {[%emt 0:00:48]} Bb7 {[%emt 0:00:05]} 6. Bd3 {[%emt 0:00:21]} d6 {[%emt 0:00:28]} 7. Qe2 {[%emt 0:01:25] A46: 1 d4 Nf6 2 Nf3 e6: Torre, London and Colle Systems.} Nbd7 {[%emt 0:01:09]} 8. c3 {[%emt 0:08:35]} h6 {[%emt 0:04:31]} 9. Bh4 {[%emt 0:00:36] White is slightly better.} Nh5 {[%emt 0:02:10]} 10. Bxe7 {[%emt 0:02:06]} Qxe7 {[%emt 0:01:25]} 11. g3 {[%emt 0:00:12] [#] Prevents Nf4.} O-O-O $146 {[%emt 0:14:41]} (11... e5 $14) ({Predecessor:} 11... Nhf6 12. Ba6 Bxa6 13. Qxa6 O-O 14. O-O e5 15. Rfe1 Rfe8 16. b4 Qe6 17. d5 Qh3 {1-0 (50) Gorovets,A (2481)-Morozov,E (2121) Kostroma 2013}) 12. Ba6 {[%emt 0:01:50]} Nhf6 {[%emt 0:02:27]} 13. a4 {[%emt 0:01:12][%cal Ba2a4,Ba4a5,Ba5a6][%mdl 32]} Nb8 {[%emt 0:09:07]} 14. Bxb7+ {[%emt 0:01:44]} Kxb7 {[%emt 0:00:01]} 15. a5 {[%emt 0:01:01]} Nc6 {[%emt 0:07:06]} 16. b4 {[%emt 0:04:46][%cal Bb2b4,Bb4b5][%mdl 32]} ({Don't do} 16. axb6 $6 cxb6 17. O-O (17. e5 Ne8 $16) 17... Kb8 $16) ({Much less strong is} 16. e5 $6 dxe5 17. Nxe5 (17. dxe5 Nd5 $16) (17. axb6 cxb6 18. Nxe5 Nxe5 $16) 17... Nxe5 $16) 16... Ra8 {[%emt 0:02:57]} 17. a6+ {[%emt 0:09:29]} Kc8 {[%emt 0:00:27]} 18. O-O {[%emt 0:00:21]} Qd7 {[%emt 0:11:08]} 19. Rfc1 {[%emt 0:03:27]} Kd8 {[%emt 0:08:01]} 20. b5 {[%emt 0:02:19]} Na5 {[%emt 0:00:12]} (20... Ne7 $142 21. e5 Nh7) 21. e5 $18 {[%emt 0:00:20]} Nh7 {[%emt 0:01:22]} 22. c4 {[%emt 0:00:55][%cal Bc3c4,Bc4c5,Bc5c6][%mdl 32]} Ke7 {[%emt 0:01:13]} 23. exd6+ {[%emt 0:08:45]} cxd6 {[%emt 0:00:11]} 24. c5 {[%emt 0:00:06]} Rhc8 {[%emt 0:01:41]} 25. c6 {[%emt 0:04:23]} Qe8 {[%emt 0:04:27]} (25... Qc7 $142 26. d5 e5) 26. d5 {[%emt 0:01:26]} Kf8 {[%emt 0:04:21]} 27. Re1 {[%emt 0:06:06]} e5 {[%emt 0:01:24]} 28. Qd3 {[%emt 0:01:20]} Nf6 {[%emt 0:00:14]} 29. Ra4 {[%emt 0:03:24][%cal Ba1a4,Ba4f4,Bf4f6][%mdl 32]} Qd8 {[%emt 0:03:18]} (29... Kg8 $142 30. Nh4 Qf8) 30. Nh4 {[%emt 0:03:58]} Qc7 {[%emt 0:01:29]} 31. f4 {[%emt 0:05:05]} exf4 {[%emt 0:00:11]} 32. Rxf4 {[%emt 0:00:07]} Re8 {[%emt 0:01:18]} 33. Ref1 {[%emt 0:01:59] [#] aiming for Rxf6.} Re5 {[%emt 0:02:19]} 34. Ne4 {[%emt 0:00:43]} Rxe4 {[%emt 0:02:11]} 35. Rxf6 {[%emt 0:01:07]} Rae8 {[%emt 0:00:01] [#]} 36. Qf3 $1 {[%emt 0:08:17][%cal Rf6f7]} gxf6 {[%emt 0:00:15]} (36... R8e7 37. Ng6+) 37. Qxf6 {[%emt 0:00:07]} Rg4 {[%emt 0:02:47]} 38. Qh8+ {[%emt 0:00:27] White took control after the opening.  Weighted Error Value: White=0.13 (very precise) /Black=0.86} 1-0

[Event "Teplice Open 2022"]
[Site "Teplice"]
[Date "2022.06.21"]
[Round "4.19"]
[White "Mikes, Jan"]
[Black "Yankelevich, Lev"]
[Result "0-1"]
[ECO "C58"]
[WhiteElo "2349"]
[BlackElo "2473"]
[Annotator "TA"]
[PlyCount "168"]
[EventDate "2022.06.18"]
[EventType "swiss"]
[EventCountry "CZE"]
[SourceTitle "playchess.com"]
[Source "ChessBase"]
[SourceQuality "1"]
[TimeControl "40/5400+30:1800+30"]

{[%evp 14,168,27,38,33,29,20,16,35,18,12,14,29,16,25,-60,-61,-122,-106,-169,-178,-162,-131,-148,-127,-135,-81,-80,-80,-78,-97,-77,-87,-150,-167,-150,-156,-170,-153,-198,-203,-187,-208,-218,-216,-235,-216,-216,-216,-225,-224,-220,-220,-220,-220,-274,-270,-270,-270,-270,-260,-260,-252,-252,-194,-192,-164,-184,-146,-146,-146,-146,-146,-146,-93,-100,0,-146,-146,-146,-144,-144,-144,-144,-144,-146,-146,-147,-28,-28,-28,-28,-20,-20,-20,-28,-28,-28,-28,-28,-28,-28,-28,-28,-28,-28,-28,-28,-28,-28,-28,-28,-28,-28,-28,-28,-24,-28,-28,-28,-28,-40,-40,-40,-40,-40,-40,-40,-40,-40,-40,-40,-40,-40,-40,-40,-40,-40,-40,-40,-28,-28,-28,-40,-28,-28,-28,-29978,-29980,-29980,-29981,-29981,-29982,-29982,-29983,-29987,-29988]} 1. e4 {[%emt 0:00:06]} e5 {[%emt 0:07:15]} 2. Nf3 {[%emt 0:00:42]} Nc6 {[%emt 0:00:11]} 3. Bc4 {[%emt 0:00:50]} Nf6 {[%emt 0:00:12]} 4. Ng5 {[%emt 0:00:28]} d5 {[%emt 0:00:08]} 5. exd5 {[%emt 0:00:05]} Na5 {[%emt 0:00:03]} 6. Bb5+ {[%emt 0:00:06]} c6 {[%emt 0:00:03]} 7. dxc6 {[%emt 0:00:03]} bxc6 {[%emt 0:00:04]} 8. Bd3 {[%emt 0:00:14] is now more promising than 8.Be2.} Nd5 {[%emt 0:01:30] C58: Two Knights: 4 Ng5 d5 5 exd5 Na5 sidelines.} 9. Nf3 {[%emt 0:00:16]} ({Worse is} 9. Qh5 g6 10. Nxf7 gxh5 $17) 9... Bd6 {[%emt 0:01:33]} 10. O-O {[%emt 0:00:39]} Nf4 {[%emt 0:05:54] The position is equal.} 11. Nc3 {[%emt 0:01:42]} Nxd3 {[%emt 0:03:06]} 12. cxd3 {[%emt 0:00:05]} O-O {[%emt 0:00:35]} 13. Ne4 {[%emt 0:00:31]} c5 {[%emt 0:08:27] [#]} 14. Qc2 $146 {[%emt 0:03:29]} (14. b3 $11) ({Predecessor:} 14. b3 Ba6 15. Qc2 f6 16. Ba3 Rc8 17. Qc3 Be7 18. Nxc5 Nb7 19. b4 Nxc5 20. bxc5 Bxd3 {1-0 (30) Pichot,A (2630)-Nasuta,G (2512) Chess.com INT 2021}) 14... Nc6 $15 {[%emt 0:18:50][%cal Ba5c6,Bc6b4,Bb4d3][%mdl 32]} 15. Qa4 {[%emt 0:15:36]} (15. b3 $15) 15... Bb7 $1 $17 {[%emt 0:06:23]} 16. Re1 {[%emt 0:22:29]} (16. d4 $17 Nxd4 17. Nxd4 cxd4 18. d3) 16... Nb4 $19 {[%emt 0:07:40]} 17. a3 {[%emt 0:15:32]} Nxd3 {[%emt 0:01:05]} 18. Re3 {[%emt 0:00:05]} Nf4 {[%emt 0:04:40]} 19. b4 {[%emt 0:02:32]} Bxe4 {[%emt 0:06:05]} (19... c4 $142 {Hoping for ...Bc7.} 20. Bb2 f6) 20. Rxe4 $17 {[%emt 0:00:05]} cxb4 $1 {[%emt 0:01:10]} 21. axb4 {[%emt 0:08:08]} f5 {[%emt 0:00:17]} 22. Rxf4 {[%emt 0:05:43]} exf4 {[%emt 0:00:05]} 23. d4 {[%emt 0:00:04]} (23. Qb3+ $142 Kh8 24. Bb2) 23... Qe7 {[%emt 0:07:24]} 24. Bd2 {[%emt 0:01:38]} h6 {[%emt 0:03:25]} 25. Re1 {[%emt 0:01:48]} Qf7 {[%emt 0:01:02]} 26. Ne5 {[%emt 0:11:06]} Bxe5 {[%emt 0:03:03]} 27. dxe5 {[%emt 0:00:05]} f3 {[%emt 0:07:51]} 28. Qc6 {[%emt 0:02:00]} Rad8 {[%emt 0:01:25]} 29. Be3 {[%emt 0:02:34]} Rfe8 {[%emt 0:00:37][%cal Bf8e8,Be8e5,Be5b5,Bb5b4][%mdl 32]} 30. Qxf3 {[%emt 0:01:52]} Rxe5 {[%emt 0:00:05][%cal Of5f4]} 31. Ra1 {[%emt 0:00:24]} Qd5 {[%emt 0:00:47][%cal Oa7a6]} 32. h3 {[%emt 0:03:08]} Qxf3 {[%emt 0:02:19]} 33. gxf3 $19 {[%emt 0:00:03][%mdl 4096] Endgame KRR-KRB} Rb5 {[%emt 0:00:07]} 34. Rxa7 {[%emt 0:00:57]} Rxb4 {[%emt 0:00:06] Strongly threatening ...f4.} 35. f4 {[%emt 0:01:07]} Rb1+ {[%emt 0:00:35]} 36. Kg2 {[%emt 0:00:04]} Rd6 {[%emt 0:00:06]} 37. Ra5 {[%emt 0:00:14]} Rg6+ {[%emt 0:00:12]} 38. Kh2 {[%emt 0:01:45]} Rbg1 {[%emt 0:02:16][%csl Gg1][%cal Rg6g2]} 39. h4 {[%emt 0:00:05]} R6g2+ {[%emt 0:00:08]} 40. Kh3 {[%emt 0:00:03]} Rg4 {[%emt 0:00:04][%cal Rg1h1]} 41. Rxf5 {[%emt 0:30:45]} g6 {[%emt 0:30:15]} 42. Rc5 {[%emt 0:00:00]} h5 $1 {[%emt 0:00:00][%cal Rg1h1]} 43. Kh2 {[%emt 0:00:00] Inhibits Rh1+.} R4g2+ {[%emt 0:00:00]} (43... Rd1 $142 44. Rg5 Rxg5 45. fxg5 Kf7) 44. Kh3 $17 {[%emt 0:00:00]} Rg4 {[%emt 0:00:00]} (44... Kg7 $142 45. f5 Rg4) 45. Kh2 $1 {[%emt 0:00:00]} Ra1 {[%emt 0:00:00]} 46. f5 {[%emt 0:00:00]} gxf5 {[%emt 0:00:00] Black is more active.} 47. Rxf5 {[%emt 0:00:00]} Rxh4+ {[%emt 0:00:00]} 48. Kg3 {[%emt 0:00:00]} Rah1 {[%emt 0:00:00]} 49. Kg2 {[%emt 0:00:00]} Rb1 {[%emt 0:00:00]} 50. Bf4 {[%emt 0:00:00]} Rg4+ {[%emt 0:00:00]} ({Black should try} 50... Kg7 $17 51. Kf3 Rb4) 51. Bg3 $11 {[%emt 0:02:28]} h4 {[%emt 0:00:00]} 52. Rf4 {[%emt 0:00:04]} Rxf4 {[%emt 0:00:00]} 53. Bxf4 {[%emt 0:00:03] KR-KB} Rb4 {[%emt 0:00:00]} 54. Bd6 {[%emt 0:01:03]} Rd4 {[%emt 0:00:00]} 55. Be5 {[%emt 0:01:45]} Re4 {[%emt 0:00:00]} 56. f4 {[%emt 0:00:16]} Re3 {[%emt 0:00:00]} 57. Bf6 {[%emt 0:00:17]} h3+ {[%emt 0:00:00]} 58. Kh2 {[%emt 0:00:05]} Kf7 {[%emt 0:00:00]} 59. Bh4 {[%emt 0:00:05]} Kg6 {[%emt 0:00:00]} 60. Bg3 {[%emt 0:00:13]} Kh5 {[%emt 0:00:00]} 61. Kxh3 {[%emt 0:00:14]} Rf3 {[%emt 0:00:00]} 62. f5 {[%emt 0:01:15]} Rxf5 {[%emt 0:00:00]} 63. Kg2 {[%emt 0:00:20]} Kg4 {[%emt 0:00:00]} 64. Be1 {[%emt 0:01:49]} Rf3 {[%emt 0:00:00]} 65. Bf2 {[%emt 0:00:23]} Ra3 {[%emt 0:00:00]} 66. Bc5 {[%emt 0:00:27]} Ra2+ {[%emt 0:00:00]} 67. Kg1 {[%emt 0:00:06]} Kf3 {[%emt 0:00:00]} 68. Bd6 {[%emt 0:00:49]} Ra6 {[%emt 0:00:00]} 69. Bc7 {[%emt 0:00:26]} Rc6 {[%emt 0:00:00]} 70. Bb8 {[%emt 0:00:13]} Rg6+ {[%emt 0:00:42]} 71. Kh2 {[%emt 0:01:07]} Rg2+ {[%emt 0:00:14]} 72. Kh1 $1 {[%emt 0:00:34]} Rg8 {[%emt 0:00:27]} 73. Bc7 {[%emt 0:00:09]} Kf2 {[%emt 0:00:20]} 74. Bb6+ {[%emt 0:00:39]} Kg3 {[%emt 0:00:10]} 75. Kg1 {[%emt 0:00:47]} Rc8 {[%emt 0:00:10][%cal Rc8c1]} 76. Bf2+ {[%emt 0:00:42]} Kh3 {[%emt 0:00:11] ( -> ...Rc1+)} 77. Bb6 {[%emt 0:00:15]} Rc2 {[%emt 0:00:03]} 78. Bd4 {[%emt 0:00:17]} Rg2+ {[%emt 0:00:05]} 79. Kf1 {[%emt 0:00:13]} Kg3 {[%emt 0:00:03]} 80. Be5+ $2 {[%emt 0:02:10][%mdl 8192] This costs White the game.} (80. Ke1 $11) 80... Kf3 {[%emt 0:00:04] Black mates.} 81. Bf6 {[%emt 0:00:29] [#]} Rg6 $1 {[%emt 0:00:42]} 82. Be5 {[%emt 0:00:21]} Rg5 {[%emt 0:02:40]} 83. Bf6 {[%emt 0:00:38] [#]} Rf5 $1 {[%emt 0:00:06]} 84. Ba1 {[%emt 0:01:13]} Rb5 {[%emt 0:00:15] Weighted Error Value: White=0.11 (very precise) /Black=0.11 (very precise)} 0-1

[Event "Teplice Open 2022"]
[Site "Teplice"]
[Date "2022.06.21"]
[Round "4.20"]
[White "Margarido, Jose Miguel Teixeira"]
[Black "Raja Harshit"]
[Result "0-1"]
[ECO "A06"]
[WhiteElo "2127"]
[BlackElo "2479"]
[Annotator "TA"]
[PlyCount "32"]
[EventDate "2022.06.18"]
[EventType "swiss"]
[EventCountry "CZE"]
[SourceTitle "playchess.com"]
[Source "ChessBase"]
[SourceQuality "1"]
[TimeControl "40/5400+30:1800+30"]

{[%evp 9,32,-1,-3,0,-9,-8,7,-14,-15,-15,14,-29,-18,-18,-16,-35,-3,-412,-418,-29991,-29992,-29992,-29993,-29997,-29998]} 1. Nf3 {[%emt 0:00:03]} d5 {[%emt 0:22:45]} 2. e3 {[%emt 0:00:23]} c5 {[%emt 0:02:09]} 3. b3 {[%emt 0:01:17]} Nf6 {[%emt 0:01:51][%cal Bg8f6,Bf6d5,Bd5f4,Bf4h3][%mdl 32]} 4. Bb2 {[%emt 0:00:40]} e6 {[%emt 0:02:01]} 5. Bb5+ {[%emt 0:00:58]} Nbd7 {[%emt 0:01:04]} 6. c4 {[%emt 0:06:27] A06: Réti Opening: 1 Nf3 d5.} a6 {[%emt 0:00:41]} 7. Bxd7+ {[%emt 0:00:06] [#]} Qxd7 $146 {[%emt 0:03:21]} ({Predecessor:} 7... Bxd7 8. Ne5 Be7 9. O-O O-O 10. d3 b5 11. Nd2 a5 12. Nxd7 Qxd7 13. Nf3 a4 {½-½ (36) Matnadze,A (2418)-Milliet,S (2418) Terme Catez 2021}) 8. cxd5 {[%emt 0:01:51] The position is equal.} Nxd5 {[%emt 0:03:29]} 9. O-O {[%emt 0:03:02]} b5 {[%emt 0:03:04]} 10. d4 {[%emt 0:10:38]} Bb7 {[%emt 0:00:34]} 11. dxc5 {[%emt 0:03:55]} Bxc5 {[%emt 0:00:26]} 12. Bxg7 {[%emt 0:09:37]} Rg8 {[%emt 0:00:12]} 13. Bd4 {[%emt 0:01:52][%mdl 8192] [#] Loses the game.} (13. Be5 $1 $11) 13... Nf4 $1 $19 {[%emt 0:00:46]} 14. Bxc5 {[%emt 0:18:54]} (14. g3 $19 Bxd4 15. exd4) 14... Nh3+ {[%emt 0:00:38] Black mates.} 15. Kh1 {[%emt 0:00:21]} Qxd1 {[%emt 0:01:02]} 16. Rxd1 {[%emt 0:00:16]} Bxf3 {[%emt 0:00:00] Weighted Error Value: White=1.47/Black=0.03 (flawless)} 0-1